Cogmind - Beta 13 @@@ ROGUE MODE // 2024.04.06 @ 13:27:53 Player: emory Result: Destroyed by H-55 Commando with Assault Rifle Performance ------------- Evolutions (2) 1000 Regions Visited (4) 800 Robots Destroyed (10) 50 Value Destroyed (281) 281 Prototype IDs (0) 0 Alien Tech Used (0) 0 Bonus (200) 200 TOTAL SCORE: 2331 Bonus ------- Pacifist 200 Cogmind --------- Core Integrity 0/550 Matter 270/300 Energy 224/250 System Corruption 0% Temperature Cool (0) Movement Core (100) Ox1 Location -8/Materials Parts ------- > --- POWER (1) -------- Ion Engine > --- PROPULSION (4) --- (None) > --- UTILITY (4) ------ Hacking Suite Hacking Suite Hacking Suite > --- WEAPON (2) ------- Improved Datajack > --- INVENTORY (5) ---- (None) Peak State ------------ > --- POWER ------------ Light Ion Engine > --- PROPULSION ------- Cesium-ion Thruster Cesium-ion Thruster Cesium-ion Thruster Cesium-ion Thruster > --- UTILITY ---------- Small Storage Unit Hacking Suite Hacking Suite Hacking Suite > --- WEAPON ----------- Light Assault Rifle Mining Laser > --- INVENTORY -------- Light Ion Engine Flight Unit Flight Unit Hacking Suite EM Pulse Gun [Rating: 25] Favorites ----------- Power Light Ion Engine Engine Light Ion Engine Propulsion Cesium-ion Thruster Treads Light Treads Flight Unit Cesium-ion Thruster Utility Hacking Suite Storage Small Storage Unit Hackware Hacking Suite Weapon Light Assault Rifle Energy Gun EM Pulse Gun Energy Cannon Heavy Particle Cannon Ballistic Gun Light Assault Rifle Special Weapon Mining Laser Special Melee Weapon Improved Datajack Build | -11 -10 -9 -9 -8 ------- Run | Yrd Mat Mat Min Mat Slots Evolved 4 | . . 2 . 2 Power . | . . . . . Propulsion 2 | . . 2 . . Utility 2 | . . . . 2 Weapon . | . . . . . Parts Attached 23 | 6 . 4 1 12 Power 3 | 1 . . . 2 Engine 3 | 1 . . . 2 Core . | . . . . . Reactor . | . . . . . Propulsion 9 | 2 . 4 . 3 Treads 3 | 2 . . . 1 Leg . | . . . . . Wheel . | . . . . . Hover . | . . . . . Flight 6 | . . 4 . 2 Utility 5 | 1 . . . 4 Device . | . . . . . Storage 1 | 1 . . . . Processor . | . . . . . Hackware 4 | . . . . 4 Protection . | . . . . . Artifact . | . . . . . Weapon 6 | 2 . . 1 3 Energy Gun 1 | 1 . . . . Energy Cannon 2 | . . . . 2 Ballistic Gun 1 | 1 . . . . Ballistic Cannon . | . . . . . Launcher . | . . . . . Special Weapon 1 | . . . 1 . Impact Weapon . | . . . . . Slashing Weapon . | . . . . . Piercing Weapon . | . . . . . Special Melee Weapon 1 | . . . . 1 Unidentified Prototypes . | . . . . . Parts Lost 15 | . . . . 15 Power 2 | . . . . 2 Propulsion 7 | . . . . 7 Utility 2 | . . . . 2 Weapon 4 | . . . . 4 Highest Loss Streak 13 | . . . . 13 To Critical Strikes . | . . . . . Average Slot Usage (%) 81 | . 85 76 88 79 Engine 9 | . 14 11 11 6 Treads 6 | . 28 11 . . Flight 24 | . . 20 44 25 Storage 9 | . 14 11 11 7 Hackware 12 | . . . . 26 Energy Gun 4 | . 14 11 . . Ballistic Gun 9 | . 14 11 11 5 Special Weapon 4 | . . . 11 5 Naked Turns . | . . . . . Heaviest Build 17 | 11 11 11 11 17 Greatest Support 40 | 40 40 40 20 20 Greatest Overweight (x) 4 | . . . . 4 Average Overweight (x) . | . . . . . Largest Inventory Capacity 8 | 8 8 8 8 8 Average Capacity 7 | 7 8 8 8 7 Most Carried 8 | 5 4 8 8 7 Average Carried 4 | 2 3 5 7 3 Final Capacity 8 | 8 8 8 8 5 Final Carried 8 | 3 4 7 8 . Class Distribution -------------------- 31% | Mutant 30% | Hacker-Sprinter 26% | Sprinter 11% | Hacker-Mutant Dominant Class ---------------- Mutant | -10/Materials Sprinter | -9/Materials Sprinter | -9/Mines Hacker-Sprinter | -8/Materials Resources | -11 -10 -9 -9 -8 ----------- Run | Yrd Mat Mat Min Mat Matter Collected 361 | 210 . 107 16 28 Remotely . | . . . . . Salvage Created 291 | . . 224 10 57 Parts 23 | . . 13 5 5 Haulers Intercepted . | . . . . . Recyclers Shooed 1 | . . 1 . . Parts Field Recycled . | . . . . . Retrieved Matter . | . . . . . Parts Self-Destructed . | . . . . . Prevented . | . . . . . Kills | -11 -10 -9 -9 -8 ------- Run | Yrd Mat Mat Min Mat Combat Hostiles Destroyed 9 | . . 4 2 3 Guns 6 | . . 4 1 1 Cannons 3 | . . . 1 2 Classes Destroyed 4 | . . 3 1 . Watcher 1 | . . 1 . . Swarmer 4 | . . . 2 2 Grunt 3 | . . 2 . 1 Sentry 2 | . . 2 . . Best Kill Streak 2 | . . 2 2 2 Combat Bots Only 2 | . . 2 2 2 Max Kills in Single Turn 1 | . . 1 1 1 Gunslinging . | . . . . . Exploded . | . . . . . Melee . | . . . . . Uniques/NPCs Destroyed . | . . . . . Combat | -11 -10 -9 -9 -8 -------- Run | Yrd Mat Mat Min Mat Hostile Shots Fired 204 | . . 17 20 167 Missed 64 | . . 7 10 47 Damage Taken 1732 | . . 136 81 1515 Core 613 | . . 13 40 560 Absorbed by Shields . | . . . . . Core Remaining (%) 95 | 100 100 . 86 . Volleys Fired 38 | . 4 13 11 10 Largest 2 | . 2 2 2 2 Hottest 120 | . 60 60 120 120 Shots Fired 59 | . 8 26 13 12 Gun 43 | . 8 26 6 3 Cannon 7 | . . . . 7 Launcher . | . . . . . Special 9 | . . . 7 2 Kinetic 26 | . 4 13 6 3 Thermal 16 | . . . 7 9 Explosive . | . . . . . Electromagnetic 17 | . 4 13 . . Robot Hit Streak 13 | . 2 13 7 3 Robot Miss Streak 2 | . 2 1 2 2 Penetration Max . | . . . . . Secondary Targets . | . . . . . Shots Hit Robots 36 | . 4 20 6 6 Core Hits 18 | . . 12 2 4 Critical Kills . | . . . . . Critical Parts Destroyed . | . . . . . Critical Strikes 2 | . 1 1 . . Corrupt 2 | . 1 1 . . Melee Attacks 1 | . . . . 1 Impact . | . . . . . Slashing . | . . . . . Piercing . | . . . . . Sneak Attacks . | . . . . . Combat Hostiles . | . . . . . Follow-up Attacks . | . . . . . Damage Inflicted 470 | . 61 209 83 117 Guns 321 | . 61 209 35 16 Cannons 75 | . . . . 75 Explosions . | . . . . . Melee . | . . . . . Ramming 2 | . . . . 2 Kinetic 136 | . 17 68 35 16 Thermal 147 | . . . 48 99 Explosive . | . . . . . Electromagnetic 185 | . 44 141 . . Impact . | . . . . . Slashing . | . . . . . Piercing . | . . . . . Highest Corruption . | . . . . . Average Corruption . | . . . . . Corruption Purged . | . . . . . Corruption Blocked . | . . . . . Overload Shots . | . . . . . Overflow Damage . | . . . . . Projectiles . | . . . . . Explosions . | . . . . . Melee . | . . . . . Knockbacks . | . . . . . Impact . | . . . . . Kinetic . | . . . . . Secondary . | . . . . . Self-Inflicted Damage . | . . . . . Shots . | . . . . . Rammed 5 | . . . . 5 Targets Rammed 5 | . . . . 5 Kicked . | . . . . . Crushed . | . . . . . Highest Temperature 128 | . 20 106 128 104 Average Temperature 46 | . 15 41 54 43 Received Heat Transfer 630 | . . 72 . 558 Siege Activations . | . . . . . Robots Corrupted . | . . . . . Combat Hostiles . | . . . . . Parts Fried 2 | . . 2 . . Impact Corruptions . | . . . . . Robots Melted . | . . . . . Combat Hostiles . | . . . . . Parts Melted 1 | . . . 1 . Heat Transferred 261 | . . . 100 161 Parts Sabotaged . | . . . . . Parts Stolen . | . . . . . Parts Stripped . | . . . . . Power Chain Reactions . | . . . . . Alert | -11 -10 -9 -9 -8 ------- Run | Yrd Mat Mat Min Mat Peak Influence 250 | . . 182 250 125 Initial 89 | . . . 70 89 Average 69 | . . 59 115 92 Maximum Alert Level 1 | . . . 1 . Low Security (%) 97 | 100 100 100 88 100 Level 1 2 | . . . 11 . Level 2 . | . . . . . Level 3 . | . . . . . Level 4 . | . . . . . Level 5 . | . . . . . High Security . | . . . . . Max Security . | . . . . . Squads Dispatched 1 | . . . . 1 Investigation 1 | . . . . 1 Extermination . | . . . . . Reinforcement . | . . . . . Assault . | . . . . . Garrison . | . . . . . Intercept . | . . . . . Searches Triggered . | . . . . . Construction Impeded . | . . . . . Haulers Reinforced . | . . . . . Active Scanning Responses . | . . . . . Cargo Convoy Interrupts . | . . . . . Stealth | -11 -10 -9 -9 -8 --------- Run | Yrd Mat Mat Min Mat Distress Signals 1 | . . 1 . . Communications Jammed . | . . . . . Distress Signals . | . . . . . Times Spotted 32 | . 2 7 11 12 Peak Tracking Total 8 | . 1 2 4 8 Tactical Retreats 2 | . . . 2 . Traps | -11 -10 -9 -9 -8 ------- Run | Yrd Mat Mat Min Mat Traps Triggered . | . . . . . Indirectly . | . . . . . Trap Hack Attempts . | . . . . . Triggered . | . . . . . Disarmed . | . . . . . Reprogrammed . | . . . . . Reused . | . . . . . Traps Extracted . | . . . . . Installed . | . . . . . Triggered . | . . . . . Machines | -11 -10 -9 -9 -8 ---------- Run | Yrd Mat Mat Min Mat Machines Disabled 2 | . . . . 2 Max in Single Turn 1 | . . . . 1 Machines Repaired . | . . . . . Machines Dismantled . | . . . . . Machines Sabotaged . | . . . . . Overloaded Fab Kills . | . . . . . Hacking | -11 -10 -9 -9 -8 --------- Run | Yrd Mat Mat Min Mat Machines Accessed 1 | . . . . 1 Terminals 1 | . . . . 1 Fabricators . | . . . . . Repair Stations . | . . . . . Recycling Units . | . . . . . Scanalyzers . | . . . . . Garrison Access . | . . . . . Total Hacks 4 | . . . . 4 Successful 3 | . . . . 3 Failed 1 | . . . . 1 Catastrophic . | . . . . . Database Lockouts . | . . . . . Manual 1 | . . . . 1 Terminals 4 | . . . . 4 Fabricators . | . . . . . Repair Stations . | . . . . . Recycling Units . | . . . . . Scanalyzers . | . . . . . Garrison Access . | . . . . . Terminal Hacks 3 | . . . . 3 Record 1 | . . . . 1 Level Access Points 1 | . . . . 1 Zone Layout 1 | . . . . 1 Fabricator Hacks . | . . . . . Repair Station Hacks . | . . . . . Recycling Unit Hacks . | . . . . . Scanalyzer . | . . . . . Garrison Access Hacks . | . . . . . Unauthorized Hacks . | . . . . . Terminals . | . . . . . Fabricators . | . . . . . Repair Stations . | . . . . . Recycling Units . | . . . . . Scanalyzers . | . . . . . Garrison Access . | . . . . . Data Cores Recovered . | . . . . . Used . | . . . . . Hacking Detections 1 | . . . . 1 Full Trace Events 1 | . . . . 1 Feedback Events . | . . . . . Feedback Blocked . | . . . . . Robot Schematics Acquired . | . . . . . Robots Built . | . . . . . Authchips . | . . . . . Time . | . . . . . Total Robot Build Rating . | . . . . . Part Schematics Acquired . | . . . . . Parts Built . | . . . . . Authchips . | . . . . . Time . | . . . . . Total Part Build Rating . | . . . . . Parts Repaired . | . . . . . Time . | . . . . . Parts Recycled . | . . . . . Recycled Matter . | . . . . . Retrieved Matter . | . . . . . Retrieved Components . | . . . . . Parts Scanalyzed . | . . . . . Part Schematics Acquired . | . . . . . Parts Damaged . | . . . . . Bothacking | -11 -10 -9 -9 -8 ------------ Run | Yrd Mat Mat Min Mat Used RIF Installer . | . . . . . Robots Hacked . | . . . . . Non-combat . | . . . . . Combat . | . . . . . Robot Hacks Applied . | . . . . . Relay Couplers Released . | . . . . . Fabnet Peak Effective % . | . . . . . Robots Rewired . | . . . . . Allies Hacked . | . . . . . Hacks Repelled . | . . . . . Allies | -11 -10 -9 -9 -8 -------- Run | Yrd Mat Mat Min Mat Total Allies 1 | . . . 1 . Largest Group 1 | . . . 1 . Highest-Rated Group 31 | . . . 31 . Highest-Rated Ally 31 | . . . 31 . Total Orders . | . . . . . Ally Attacks 4 | . . . 4 . Total Damage 65 | . . . 65 . Kills 1 | . . . 1 . Allies Corrupted . | . . . . . Allies Melted . | . . . . . Intel | -11 -10 -9 -9 -8 ------- Run | Yrd Mat Mat Min Mat Robot Analysis Total . | . . . . . Derelict Logs Recovered 3 | . . . 3 . Drone Launches . | . . . . . Drone Recoveries . | . . . . . Exploration | -11 -10 -9 -9 -8 ------------- Run | Yrd Mat Mat Min Mat Turns Passed 887 | 79 129 143 165 371 Spaces Moved 964 | 49 74 121 457 263 Core 59 | 12 . . . 47 Treads 165 | 37 74 38 . 16 Legs . | . . . . . Wheels . | . . . . . Hover . | . . . . . Flight 740 | . . 83 457 200 Fastest Speed 26 | 50 160 26 26 26 Average Speed 54 | 133 160 68 26 52 Slowest Speed 360 | 160 160 160 26 360 Overloaded Moves . | . . . . . Propulsion Burnouts . | . . . . . Robots Hopped 4 | . . . 2 2 Cave-ins Triggered . | . . . . . Exploration Rate (%) 27 | 5 21 14 78 20 Regions Visited 4 Branch Regions 1 Pre-discovered Areas 1 | . . . 1 . Known Exits Taken 1 | . . . 1 . Unknown Exits Taken 3 | 1 1 1 . . Scrap Searched 2 | . . . 2 . Spaces Dug 5 | . . . 5 . Terrain Destroyed 6 | . . . 5 1 Melee . | . . . . . Projectile 6 | . . . 5 1 AOE . | . . . . . Terrain Rammed . | . . . . . Walls Destroyed . | . . . . . Machines Disabled . | . . . . . Actions | -11 -10 -9 -9 -8 --------- Run | Yrd Mat Mat Min Mat Total 1253 | 63 78 159 478 475 Wait 189 | . . 8 1 180 Move 952 | 48 73 120 452 259 Hop 4 | . . . 2 2 Pick Up 30 | 9 1 9 6 5 Fast Attach . | . . . . . Attach 23 | 6 . 4 1 12 Detach 1 | . . 1 . . Swap . | . . . . . Drop 10 | . . 4 5 1 Fire 38 | . 4 13 11 10 Melee 1 | . . . . 1 Ram . | . . . . . Kick . | . . . . . Crush 5 | . . . . 5 Escape Stasis . | . . . . . Rewire . | . . . . . Trap . | . . . . . Miscellaneous . | . . . . . Route ------- -11/Scrapyard -10/Materials -9/Materials -9/Mines (discovered 2 exits: *Mat x2) -8/Materials (discovered 3 exits: Fac x3) History --------- Turn | Location | Event 2 | -11/Scrapyard | Met Revision 17 5 | -11/Scrapyard | Discovered new exit (range 16) 80 | -11/Scrapyard | Entered Materials 200 | -10/Materials | Discovered new exit (range 3) 209 | -10/Materials | Entered another Materials area 209 | -9/Materials | Evolved 2 slots: Propulsion x2 311 | -9/Materials | Discovered new exit (range 16) 352 | -9/Materials | Entered Mines 355 | -9/Mines | Received a Mining Laser from a helpful Derelict 397 | -9/Mines | Learned Materials garrison access intel 470 | -9/Mines | Learned location of Zion (-7) 476 | -9/Mines | Discovered new exit (range 13) 481 | -9/Mines | Identified exit to Materials 517 | -9/Mines | Entered Materials 517 | -8/Materials | Evolved 2 slots: Utility x2 518 | -8/Materials | Loaded intel: 1 garrison access location 522 | -8/Materials | Identified exit to Factory 808 | -8/Materials | Core integrity fell below 50% 849 | -8/Materials | Lost 13 parts (2p6n1u4w) 849 | -8/Materials | Core integrity fell below 20% 888 | -8/Materials | Destroyed by H-55 Commando with Assault Rifle Last Messages --------------- Acquired 18 matter. Hvy. Particle Cannon destroyed. R-06 Scavenger collects Flight Unit. Critical hit (Burn: +37). Acquired Arm. Treads. Sml. Storage Unit destroyed. Slammed into G-47 Trooper. Slammed into Y-45 Defender. Critical hit (Burn: +37). Slammed into Y-45 Defender. Slug penetrates Wall. Penetrated by Slug. Arm. Treads destroyed. Penetrated by Slug. Slug penetrates Wall. Acquired Ion Engine. Hacking Suite destroyed. Acquired Imp. Datajack. Slug penetrates Wall. Penetrated by Slug. Map ----- +----------------------------------------------------+ | ?????????????????????????????????????????????????? | | ?????????????????????????????????????????????????? | | ?????????????????????????????????????????????????? | | ?????????????????????????????????????????????????? | | ?????????????????????????????????????????????????? | | ?????????????????????????????????????????????????? | | ?????????????????????????????????????????????????? | | ?????????????????????????????????????????????????? | | ?????????????????????????????????????????????????? | | ?????????????????????????????????????????????????? | | ?????????????????????????????????????????????????? | | ????????????????#####????????????????????????????? | | ???????????????##!!!!##??????????????????????????? | | ???????????????#! !#??????????????????????????? | | ???????????????# #??????????????????????????? | | ?????????????### ##########?????????????????? | | ?????????????# ??????????????????? | | ?????????????+ ??????????????????? | | ?????????????# """ ????????????????????? | | ?????????????# """ G" #?????????????????????? | | ?????????????# """ """ #?????????????????????? | | ?????????????# """ #?????????????????????? | | ?????????????# #?????????????????????? | | ?????????????# #?????????????????????? | | ???????####??# #######h####????????????????????? | | ?????? """"?## ##??# @ #????????????????????? | | ??#? ""S"" # #??# #????????????????????? | | ??# "" "" # #??# #????????????????????? | | ??# + #??# """" #????????????????????? | | ??# # #??# """" #????????????????????? | | ??# # #??# """" #????????????????????? | | ??# ?## ##??########????????????????????? | | ??# [??# #???????????????????????????????? | | ??########???# #???????????????????????????????? | | ?????????????# #???????????????????????????????? | | ??????######## #???????????????????????????????? | | ??????# # ###########?????????????????????? | | ??????# # # #?????????????????????? | | ??????# %% / # """ """ #?????????????????????? | | ??????# " " # # """[ "" ##????????????????????? | | ??????# "R" # # ""* ="" #????????????????????? | | ??????# """ # # "" %="" ##????????????????????? | | ?############# %/ #?????????????????????? | | ?# !#?# # ! #?????????????????????? | | ?# #?# # [ #?????????????????????? | | ?# #?# ###########?????????????????????? | | ?# """ """ #?# #?????????????????????????? | | ?# """ """ #?# #?????????????????????????? | | ?# """ """ #?# ##########????????????????? | | ?# """ """ #?##### # #????????????????? | +----------------------------------------------------+ Best States ------------- Heat Dissipation 31 Energy Generation 10 Energy Capacity 250 Matter Stores 300 Matter Capacity 300 Sight Range 16 Terrain Scan Density 10 Evasion (%) 64 Recoil Reduction 2 Offensive Hacking 30 Item Schematics ----------------- None Robot Schematics ------------------ None Fabricated ------------ Nothing Alien Tech Used ----------------- None Achievements -------------- None Challenges ------------ None Game ------ Seed MasterResetAutogun Manual? 0 Play Time 00:21:16 Cumulative 7.8 hours Start 2024.04.06 @ 13:05:33 End 2024.04.06 @ 13:27:53 Sessions 1 Manual Loads 0 Difficulty Rogue Special Mode None Game No. 17 Rogue 17 Adventurer 0 Explorer 0 Win Type - Total 0 Types 0/0/0/0/0/0/0/0/0 Lore% 4 Gallery% 10 Achievement% 9 Wizard Run 0 Options --------- Layout 1 ASCII 1 Keyboard 0 Movement Vi Keybinds 0 Fullscreen 1 Font 16/SmallcapsGlow Map View 50x35 Zoom Use 0% Tactical HUD 0 Map Filters NONE Filters NONE Steam SD RUN: 4b813b18-39ef-4ed8-a32d-74ab488129f9